[Event "Early-Titled-Tuesday-Blitz-April-16-2024"]
[Site "Chess.com"]
[Date "2024.04.16"]
[Round "4"]
[White "stepanosinovsky"]
[Black "kyuotbi"]
[Result "0-1"]
[WhiteElo "2407"]
[BlackElo "2273"]
[TimeControl "180+1"]
[EndTime "8:40:55 PDT"]
[Termination "kyuotbi won by checkmate"]

1. e4 {[%clk 0:03:00.9]} 1... e5 {[%clk 0:02:56.9]} 2. Nf3 {[%clk 0:03:01]} 2...
Nc6 {[%clk 0:02:55.8]} 3. Bb5 {[%clk 0:03:01]} 3... a6 {[%clk 0:02:56]} 4. Ba4
{[%clk 0:03:01.6]} 4... Nf6 {[%clk 0:02:55.4]} 5. O-O {[%clk 0:03:02.1]} 5...
Be7 {[%clk 0:02:53]} 6. Re1 {[%clk 0:03:01.6]} 6... b5 {[%clk 0:02:52.8]} 7. Bb3
{[%clk 0:03:02.3]} 7... d6 {[%clk 0:02:53.4]} 8. c3 {[%clk 0:03:00.9]} 8... O-O
{[%clk 0:02:53.8]} 9. h3 {[%clk 0:03:01.6]} 9... Na5 {[%clk 0:02:53.4]} 10. Bc2
{[%clk 0:03:01]} 10... c5 {[%clk 0:02:53.7]} 11. d4 {[%clk 0:03:01.8]} 11... Qc7
{[%clk 0:02:54.2]} 12. d5 {[%clk 0:03:01.8]} 12... Nb7 {[%clk 0:02:53.3]} 13. b3
{[%clk 0:02:58.5]} 13... c4 {[%clk 0:02:52.1]} 14. b4 {[%clk 0:02:58]} 14... a5
{[%clk 0:02:52.2]} 15. Nh2 {[%clk 0:02:14.4]} 15... axb4 {[%clk 0:02:50.4]} 16.
cxb4 {[%clk 0:02:13.9]} 16... Bd7 {[%clk 0:02:36.4]} 17. Nc3 {[%clk 0:02:12.5]}
17... g6 {[%clk 0:02:29.2]} 18. g4 {[%clk 0:01:50.1]} 18... Ne8 {[%clk
0:02:26.8]} 19. Kh1 {[%clk 0:01:46.8]} 19... Ng7 {[%clk 0:02:26.3]} 20. Rg1
{[%clk 0:01:45.6]} 20... Bh4 {[%clk 0:02:20.7]} 21. Rg2 {[%clk 0:01:39.6]} 21...
Qb6 {[%clk 0:02:17.2]} 22. Qd2 {[%clk 0:01:35.9]} 22... f6 {[%clk 0:02:10.5]}
23. Nf3 {[%clk 0:01:34.5]} 23... Bg5 {[%clk 0:02:02.5]} 24. Nxg5 {[%clk
0:01:33.7]} 24... fxg5 {[%clk 0:02:03.1]} 25. Qxg5 {[%clk 0:01:26.1]} 25... Nd8
{[%clk 0:01:57.9]} 26. Be3 {[%clk 0:00:45.4]} 26... Qc7 {[%clk 0:01:53.4]} 27.
Qh4 {[%clk 0:00:44.1]} 27... Ra3 {[%clk 0:01:50.4]} 28. Bd2 {[%clk 0:00:44.1]}
28... Rf3 {[%clk 0:01:42.8]} 29. Nd1 {[%clk 0:00:34.1]} 29... Rxh3+ {[%clk
0:01:41.3]} 30. Rh2 {[%clk 0:00:32.7]} 30... Rxh2+ {[%clk 0:01:39.7]} 31. Qxh2
{[%clk 0:00:32.9]} 31... Bxg4 {[%clk 0:01:37]} 32. Nc3 {[%clk 0:00:29.1]} 32...
Qd7 {[%clk 0:01:29.1]} 33. Kg2 {[%clk 0:00:27.6]} 33... Nf7 {[%clk 0:01:27.3]}
34. f3 {[%clk 0:00:27]} 34... Nh5 {[%clk 0:01:16.4]} 35. fxg4 {[%clk 0:00:23.5]}
35... Qxg4+ {[%clk 0:01:16.8]} 36. Kf2 {[%clk 0:00:20.7]} 36... Nf4 {[%clk
0:01:09.3]} 37. Rg1 {[%clk 0:00:19.3]} 37... Nh3+ {[%clk 0:01:07.2]} 38. Kf1
{[%clk 0:00:19.3]} 38... Nxg1 {[%clk 0:01:06]} 39. Qxg1 {[%clk 0:00:20.2]} 39...
Qf3+ {[%clk 0:01:05.3]} 40. Qf2 {[%clk 0:00:19.6]} 40... Rxc3 {[%clk 0:01:03.4]}
41. Bxc3 {[%clk 0:00:19]} 41... Qxc3 {[%clk 0:01:03.9]} 42. Kg2 {[%clk
0:00:17.1]} 42... Kg7 {[%clk 0:01:01.6]} 43. Bd1 {[%clk 0:00:13.8]} 43... Qxb4
{[%clk 0:01:00.4]} 44. Bg4 {[%clk 0:00:13.8]} 44... c3 {[%clk 0:00:57.7]} 45.
Be6 {[%clk 0:00:11.7]} 45... Qxe4+ {[%clk 0:00:55.4]} 46. Kg1 {[%clk 0:00:09.6]}
46... Qd4 {[%clk 0:00:54.3]} 47. Qxd4 {[%clk 0:00:07.8]} 47... exd4 {[%clk
0:00:54]} 48. Kf2 {[%clk 0:00:08.7]} 48... Ne5 {[%clk 0:00:52.9]} 49. Ke2 {[%clk
0:00:07.4]} 49... d3+ {[%clk 0:00:52]} 50. Ke3 {[%clk 0:00:07.3]} 50... c2
{[%clk 0:00:50.5]} 51. Kd2 {[%clk 0:00:08.2]} 51... Nc4+ {[%clk 0:00:50.6]} 52.
Kc1 {[%clk 0:00:08]} 52... Kf6 {[%clk 0:00:47.1]} 53. Bd7 {[%clk 0:00:08.2]}
53... Na3 {[%clk 0:00:44.9]} 54. Bh3 {[%clk 0:00:06]} 54... Ke5 {[%clk
0:00:45.1]} 55. Bf1 {[%clk 0:00:06]} 55... Kd4 {[%clk 0:00:45.2]} 56. Kd2 {[%clk
0:00:05.8]} 56... Nc4+ {[%clk 0:00:40.5]} 57. Kc1 {[%clk 0:00:05.6]} 57... Ne3
{[%clk 0:00:37.9]} 58. a4 {[%clk 0:00:04.5]} 58... bxa4 {[%clk 0:00:36.3]} 59.
Bxd3 {[%clk 0:00:04.2]} 59... Kxd3 {[%clk 0:00:34.6]} 60. Kb2 {[%clk 0:00:04.3]}
60... Kd2 {[%clk 0:00:34.4]} 61. Ka2 {[%clk 0:00:04.8]} 61... Nc4 {[%clk
0:00:30.3]} 62. Ka1 {[%clk 0:00:03.7]} 62... c1=Q+ {[%clk 0:00:30.2]} 63. Ka2
{[%clk 0:00:02.5]} 63... Qb2# {[%clk 0:00:30.2]} 0-1

[Event "Early-Titled-Tuesday-Blitz-April-16-2024"]
[Site "Chess.com"]
[Date "2024.04.16"]
[Round "4"]
[White "Szparu"]
[Black "Oleksandr_Bortnyk"]
[Result "0-1"]
[WhiteElo "2828"]
[BlackElo "3042"]
[TimeControl "180+1"]
[EndTime "8:40:59 PDT"]
[Termination "Oleksandr_Bortnyk won by checkmate"]

1. e4 {[%clk 0:03:00.9]} 1... Nf6 {[%clk 0:02:57.6]} 2. e5 {[%clk 0:03:01.6]}
2... Nd5 {[%clk 0:02:57.9]} 3. d4 {[%clk 0:03:02.4]} 3... d6 {[%clk 0:02:58.4]}
4. Nf3 {[%clk 0:03:03.2]} 4... dxe5 {[%clk 0:02:58.9]} 5. Nxe5 {[%clk
0:03:04.1]} 5... c6 {[%clk 0:02:59.5]} 6. Be2 {[%clk 0:03:03.9]} 6... Bf5 {[%clk
0:02:59.6]} 7. O-O {[%clk 0:02:59.2]} 7... Nd7 {[%clk 0:02:59.5]} 8. Nf3 {[%clk
0:02:58.5]} 8... e6 {[%clk 0:02:59.6]} 9. c4 {[%clk 0:02:54.8]} 9... N5f6 {[%clk
0:02:59.6]} 10. Nc3 {[%clk 0:02:48.8]} 10... Bd6 {[%clk 0:02:59.7]} 11. Re1
{[%clk 0:02:43.8]} 11... O-O {[%clk 0:02:56.4]} 12. Qb3 {[%clk 0:02:38.4]} 12...
Rb8 {[%clk 0:02:33.5]} 13. h3 {[%clk 0:02:34.5]} 13... h6 {[%clk 0:02:30.4]} 14.
Be3 {[%clk 0:02:34.6]} 14... a6 {[%clk 0:02:27.8]} 15. Rad1 {[%clk 0:02:34.3]}
15... b5 {[%clk 0:02:27.1]} 16. c5 {[%clk 0:02:24.1]} 16... Bc7 {[%clk
0:02:20.1]} 17. Ne5 {[%clk 0:02:11.5]} 17... Nxe5 {[%clk 0:02:09.9]} 18. dxe5
{[%clk 0:02:11.8]} 18... Nd5 {[%clk 0:02:10.8]} 19. Nxd5 {[%clk 0:02:11.8]}
19... cxd5 {[%clk 0:02:06.6]} 20. Qc3 {[%clk 0:02:09.5]} 20... a5 {[%clk
0:01:46.4]} 21. Bd4 {[%clk 0:02:09.5]} 21... Qg5 {[%clk 0:01:41.6]} 22. Bf1
{[%clk 0:01:57.8]} 22... b4 {[%clk 0:01:41.6]} 23. Qe3 {[%clk 0:01:54.1]} 23...
Qxe3 {[%clk 0:01:41.5]} 24. Rxe3 {[%clk 0:01:55]} 24... a4 {[%clk 0:01:41.9]}
25. g4 {[%clk 0:01:50.5]} 25... Be4 {[%clk 0:01:39.3]} 26. f3 {[%clk 0:01:50.1]}
26... Bc2 {[%clk 0:01:33.6]} 27. Rc1 {[%clk 0:01:47.4]} 27... b3 {[%clk
0:01:34.3]} 28. axb3 {[%clk 0:01:30.3]} 28... Bxb3 {[%clk 0:01:26.1]} 29. f4
{[%clk 0:01:30.5]} 29... Rb4 {[%clk 0:01:24.6]} 30. Rd3 {[%clk 0:01:19]} 30...
Rc8 {[%clk 0:01:23.5]} 31. Kf2 {[%clk 0:01:14]} 31... Bb6 {[%clk 0:01:18.6]} 32.
Ke3 {[%clk 0:01:00.2]} 32... Ba7 {[%clk 0:01:08.7]} 33. f5 {[%clk 0:00:20.4]}
33... Bc4 {[%clk 0:00:55.8]} 34. Rdd1 {[%clk 0:00:16.6]} 34... Bxc5 {[%clk
0:00:52.2]} 35. Bxc4 {[%clk 0:00:16.1]} 35... dxc4 {[%clk 0:00:47.4]} 36. Bxc5
{[%clk 0:00:11.4]} 36... Rxc5 {[%clk 0:00:48.3]} 37. Kd4 {[%clk 0:00:11.5]}
37... Rcb5 {[%clk 0:00:36.1]} 38. Kc3 {[%clk 0:00:09.3]} 38... Rxb2 {[%clk
0:00:32.8]} 39. Rd8+ {[%clk 0:00:09.4]} 39... Kh7 {[%clk 0:00:32.8]} 40. Rd7
{[%clk 0:00:10.3]} 40... R2b3+ {[%clk 0:00:26.9]} 41. Kxc4 {[%clk 0:00:10.7]}
41... R3b4+ {[%clk 0:00:23.4]} 42. Kc3 {[%clk 0:00:11.1]} 42... Rb3+ {[%clk
0:00:24]} 43. Kc4 {[%clk 0:00:11.3]} 43... Rxe5 {[%clk 0:00:23.6]} 44. fxe6
{[%clk 0:00:11.2]} 44... fxe6 {[%clk 0:00:22.1]} 45. Rf1 {[%clk 0:00:11.2]}
45... Re4+ {[%clk 0:00:21.4]} 46. Kc5 {[%clk 0:00:11.2]} 46... Rc3+ {[%clk
0:00:19.7]} 47. Kb5 {[%clk 0:00:11.1]} 47... Kg6 {[%clk 0:00:14.8]} 48. Rff7
{[%clk 0:00:10.1]} 48... Rb3+ {[%clk 0:00:13.7]} 49. Kc5 {[%clk 0:00:10.1]}
49... Rc3+ {[%clk 0:00:14.1]} 50. Kb5 {[%clk 0:00:10.6]} 50... Rxh3 {[%clk
0:00:14.9]} 51. Rxg7+ {[%clk 0:00:10.7]} 51... Kf6 {[%clk 0:00:15.7]} 52. Rdf7+
{[%clk 0:00:11.2]} 52... Ke5 {[%clk 0:00:16.2]} 53. g5 {[%clk 0:00:10.8]} 53...
Rb3+ {[%clk 0:00:15.9]} 54. Ka5 {[%clk 0:00:10.5]} 54... hxg5 {[%clk 0:00:10.9]}
55. Rxg5+ {[%clk 0:00:10.6]} 55... Kd6 {[%clk 0:00:11.7]} 56. Rf1 {[%clk
0:00:06.8]} 56... a3 {[%clk 0:00:10.9]} 57. Rd1+ {[%clk 0:00:06.5]} 57... Ke7
{[%clk 0:00:10.4]} 58. Rg7+ {[%clk 0:00:05]} 58... Kf6 {[%clk 0:00:10.6]} 59.
Rg2 {[%clk 0:00:05.5]} 59... Rb2 {[%clk 0:00:06.8]} 60. Rg3 {[%clk 0:00:03.8]}
60... a2 {[%clk 0:00:07]} 61. Ra1 {[%clk 0:00:03.9]} 61... e5 {[%clk 0:00:06.2]}
62. Ra3 {[%clk 0:00:03.7]} 62... Ree2 {[%clk 0:00:06]} 63. Ka6 {[%clk
0:00:03.1]} 63... Kf5 {[%clk 0:00:05.1]} 64. Rf1+ {[%clk 0:00:03.3]} 64... Ke6
{[%clk 0:00:03.7]} 65. Ra1 {[%clk 0:00:04.2]} 65... e4 {[%clk 0:00:03.7]} 66.
Ka5 {[%clk 0:00:04.8]} 66... Kf5 {[%clk 0:00:03.9]} 67. Rf1+ {[%clk 0:00:04.5]}
67... Ke5 {[%clk 0:00:04.6]} 68. Ra1 {[%clk 0:00:05.4]} 68... Kf4 {[%clk
0:00:05.2]} 69. Rf1+ {[%clk 0:00:05.4]} 69... Rf2 {[%clk 0:00:05.8]} 70. Re1
{[%clk 0:00:05.4]} 70... Rb1 {[%clk 0:00:06]} 71. Rxa2 {[%clk 0:00:05.7]} 71...
Rxa2# {[%clk 0:00:06.3]} 0-1

[Event "Early-Titled-Tuesday-Blitz-April-16-2024"]
[Site "Chess.com"]
[Date "2024.04.16"]
[Round "4"]
[White "FREDERICKtheMATE"]
[Black "wonderfultime"]
[Result "1/2-1/2"]
[WhiteElo "2692"]
[BlackElo "2988"]
[TimeControl "180+1"]
[EndTime "8:41:01 PDT"]
[Termination "Game drawn by repetition"]

1. d4 {[%clk 0:03:00.9]} 1... d5 {[%clk 0:02:58.2]} 2. c4 {[%clk 0:03:01.3]}
2... c6 {[%clk 0:02:57.8]} 3. Nc3 {[%clk 0:03:01]} 3... Nf6 {[%clk 0:02:57.9]}
4. e3 {[%clk 0:03:01.1]} 4... a6 {[%clk 0:02:57.8]} 5. Nf3 {[%clk 0:02:59.9]}
5... Bf5 {[%clk 0:02:57.9]} 6. Qb3 {[%clk 0:02:56.7]} 6... Ra7 {[%clk
0:02:57.8]} 7. c5 {[%clk 0:02:54.9]} 7... Nbd7 {[%clk 0:02:56.9]} 8. Na4 {[%clk
0:02:52.6]} 8... e6 {[%clk 0:02:46.3]} 9. Bd2 {[%clk 0:02:51.3]} 9... Ne4 {[%clk
0:02:45.3]} 10. Bd3 {[%clk 0:02:39.6]} 10... Be7 {[%clk 0:02:42.4]} 11. Qc2
{[%clk 0:02:39.5]} 11... Bg6 {[%clk 0:02:36.4]} 12. b4 {[%clk 0:02:37.8]} 12...
O-O {[%clk 0:02:34.3]} 13. Nc3 {[%clk 0:02:33.8]} 13... f5 {[%clk 0:02:34.3]}
14. a4 {[%clk 0:02:24.7]} 14... Bf6 {[%clk 0:02:34.2]} 15. O-O {[%clk
0:02:23.7]} 15... e5 {[%clk 0:02:34.1]} 16. Rab1 {[%clk 0:02:16.7]} 16... Bh5
{[%clk 0:02:32.3]} 17. dxe5 {[%clk 0:02:07.5]} 17... Nxe5 {[%clk 0:02:14.7]} 18.
Nd4 {[%clk 0:02:03.4]} 18... Qd7 {[%clk 0:02:00.3]} 19. f3 {[%clk 0:02:01.6]}
19... Nxd2 {[%clk 0:01:56.9]} 20. Qxd2 {[%clk 0:01:52.9]} 20... Nxd3 {[%clk
0:01:28.7]} 21. Qxd3 {[%clk 0:01:53.8]} 21... Raa8 {[%clk 0:01:26.5]} 22. Nce2
{[%clk 0:01:49.4]} 22... Rae8 {[%clk 0:01:15.8]} 23. b5 {[%clk 0:01:29.1]} 23...
axb5 {[%clk 0:01:03.2]} 24. axb5 {[%clk 0:01:30]} 24... Bg6 {[%clk 0:01:02.6]}
25. bxc6 {[%clk 0:01:20.9]} 25... bxc6 {[%clk 0:01:01.4]} 26. Nf4 {[%clk
0:01:20.6]} 26... Re7 {[%clk 0:00:56.1]} 27. Rb6 {[%clk 0:01:14]} 27... Rc8
{[%clk 0:00:40.6]} 28. Rfb1 {[%clk 0:01:10.6]} 28... Qe8 {[%clk 0:00:40.4]} 29.
Kf2 {[%clk 0:01:06.5]} 29... Be5 {[%clk 0:00:38.7]} 30. Nxc6 {[%clk 0:00:55.3]}
30... Bxf4 {[%clk 0:00:34.2]} 31. Nxe7+ {[%clk 0:00:54.9]} 31... Qxe7 {[%clk
0:00:35.1]} 32. exf4 {[%clk 0:00:49.7]} 32... Qxc5+ {[%clk 0:00:35.5]} 33. Kg3
{[%clk 0:00:48.8]} 33... d4 {[%clk 0:00:21]} 34. Rb8 {[%clk 0:00:42.7]} 34... h6
{[%clk 0:00:21.2]} 35. Rxc8+ {[%clk 0:00:42]} 35... Qxc8 {[%clk 0:00:21.9]} 36.
Qxd4 {[%clk 0:00:42.4]} 36... Kh7 {[%clk 0:00:22.2]} 37. Qe5 {[%clk 0:00:39.9]}
37... Qd7 {[%clk 0:00:19.4]} 38. Rc1 {[%clk 0:00:38.2]} 38... Qd8 {[%clk
0:00:18]} 39. Rc7 {[%clk 0:00:36.9]} 39... Qf8 {[%clk 0:00:18.5]} 40. h4 {[%clk
0:00:35]} 40... Bh5 {[%clk 0:00:17]} 41. Qe7 {[%clk 0:00:29.4]} 41... Qg8 {[%clk
0:00:16.8]} 42. Kh3 {[%clk 0:00:17.5]} 42... Bg6 {[%clk 0:00:16.4]} 43. Qe5
{[%clk 0:00:16.3]} 43... Qf8 {[%clk 0:00:16]} 44. Ra7 {[%clk 0:00:15.7]} 44...
Bh5 {[%clk 0:00:14.2]} 45. g4 {[%clk 0:00:15.3]} 45... fxg4+ {[%clk 0:00:08.9]}
46. fxg4 {[%clk 0:00:14.6]} 46... Bg6 {[%clk 0:00:09.7]} 47. f5 {[%clk
0:00:14.6]} 47... Bf7 {[%clk 0:00:10.2]} 48. Qe7 {[%clk 0:00:14.3]} 48... Qc8
{[%clk 0:00:05.5]} 49. Qxf7 {[%clk 0:00:04.9]} 49... Qc3+ {[%clk 0:00:05.3]} 50.
Kg2 {[%clk 0:00:04.8]} 50... Qd2+ {[%clk 0:00:05.7]} 51. Kf3 {[%clk 0:00:05.5]}
51... Qd3+ {[%clk 0:00:06.2]} 52. Kf4 {[%clk 0:00:05.4]} 52... Qd4+ {[%clk
0:00:06.7]} 53. Kg3 {[%clk 0:00:05.7]} 53... Qe3+ {[%clk 0:00:07]} 54. Kg2
{[%clk 0:00:06.2]} 54... Qe2+ {[%clk 0:00:07.3]} 55. Kg3 {[%clk 0:00:06.9]}
55... Qe3+ {[%clk 0:00:07.6]} 56. Kg2 {[%clk 0:00:07.6]} 56... Qe2+ {[%clk
0:00:05.9]} 57. Kg1 {[%clk 0:00:08.5]} 57... Qe1+ {[%clk 0:00:04]} 58. Kg2
{[%clk 0:00:09.4]} 58... Qe2+ {[%clk 0:00:03.7]} 1/2-1/2

[Event "Early-Titled-Tuesday-Blitz-April-16-2024"]
[Site "Chess.com"]
[Date "2024.04.16"]
[Round "4"]
[White "AsaHoffmann"]
[Black "sonicdravise"]
[Result "0-1"]
[WhiteElo "2399"]
[BlackElo "2595"]
[TimeControl "180+1"]
[EndTime "8:41:03 PDT"]
[Termination "sonicdravise won on time"]

1. d4 {[%clk 0:03:00.9]} 1... c5 {[%clk 0:02:58.6]} 2. d5 {[%clk 0:02:59.3]}
2... e5 {[%clk 0:02:53.5]} 3. Nc3 {[%clk 0:02:58]} 3... d6 {[%clk 0:02:53.6]} 4.
e4 {[%clk 0:02:48.7]} 4... Be7 {[%clk 0:02:54]} 5. Be3 {[%clk 0:02:47]} 5... Bg5
{[%clk 0:02:51.8]} 6. Qd2 {[%clk 0:02:46.3]} 6... Bxe3 {[%clk 0:02:51.7]} 7.
Qxe3 {[%clk 0:02:44.5]} 7... Nf6 {[%clk 0:02:47.5]} 8. f3 {[%clk 0:02:44.1]}
8... O-O {[%clk 0:02:47]} 9. Bd3 {[%clk 0:02:42.3]} 9... a6 {[%clk 0:02:47.1]}
10. Nge2 {[%clk 0:02:41.1]} 10... b5 {[%clk 0:02:46.2]} 11. Ng3 {[%clk
0:02:24.4]} 11... c4 {[%clk 0:02:45.8]} 12. Be2 {[%clk 0:02:23.4]} 12... Nbd7
{[%clk 0:02:42.9]} 13. a3 {[%clk 0:02:20.4]} 13... Nc5 {[%clk 0:02:41.6]} 14.
O-O {[%clk 0:02:17]} 14... Bd7 {[%clk 0:02:40.2]} 15. f4 {[%clk 0:02:14.6]}
15... exf4 {[%clk 0:02:37.5]} 16. Rxf4 {[%clk 0:02:12.9]} 16... Qe7 {[%clk
0:02:35.2]} 17. Raf1 {[%clk 0:02:09.7]} 17... Ne8 {[%clk 0:02:14.7]} 18. Qd4
{[%clk 0:01:58.5]} 18... f6 {[%clk 0:02:12]} 19. Bg4 {[%clk 0:01:56.5]} 19...
Qe5 {[%clk 0:02:06.1]} 20. Nge2 {[%clk 0:01:51.8]} 20... Bxg4 {[%clk 0:01:59.4]}
21. Rxg4 {[%clk 0:01:50.3]} 21... Nc7 {[%clk 0:01:34.6]} 22. Rf5 {[%clk
0:01:21.5]} 22... Qxd4+ {[%clk 0:01:25.5]} 23. Nxd4 {[%clk 0:01:21.1]} 23...
Rae8 {[%clk 0:01:22]} 24. Nc6 {[%clk 0:01:18.1]} 24... g6 {[%clk 0:01:01.8]} 25.
Rff4 {[%clk 0:01:16.2]} 25... Kg7 {[%clk 0:01:01.9]} 26. h4 {[%clk 0:01:07.9]}
26... h5 {[%clk 0:00:53.8]} 27. Rg3 {[%clk 0:01:06.9]} 27... Rf7 {[%clk
0:00:49.6]} 28. Re3 {[%clk 0:01:04.9]} 28... Na8 {[%clk 0:00:29.9]} 29. Kf2
{[%clk 0:01:04.8]} 29... Nb6 {[%clk 0:00:30.2]} 30. g4 {[%clk 0:01:03.8]} 30...
hxg4 {[%clk 0:00:18.4]} 31. Rxg4 {[%clk 0:01:03.3]} 31... Kh6 {[%clk 0:00:17.1]}
32. Reg3 {[%clk 0:00:58.8]} 32... Rg7 {[%clk 0:00:16]} 33. Nd4 {[%clk
0:00:53.3]} 33... Ree7 {[%clk 0:00:07]} 34. Kf3 {[%clk 0:00:51.4]} 34... Nbd7
{[%clk 0:00:06]} 35. Kg2 {[%clk 0:00:47.9]} 35... Ne5 {[%clk 0:00:06]} 36. Rf4
{[%clk 0:00:47.9]} 36... Rgf7 {[%clk 0:00:04.9]} 37. Nf3 {[%clk 0:00:32.6]}
37... Nxf3 {[%clk 0:00:04.1]} 38. Rgxf3 {[%clk 0:00:31.8]} 38... Nd7 {[%clk
0:00:04.5]} 39. Ne2 {[%clk 0:00:30.5]} 39... Kg7 {[%clk 0:00:04.2]} 40. Nd4
{[%clk 0:00:30.4]} 40... Ne5 {[%clk 0:00:04.5]} 41. Ne6+ {[%clk 0:00:30.2]}
41... Kh6 {[%clk 0:00:03.5]} 42. Rg3 {[%clk 0:00:27.8]} 42... Rb7 {[%clk
0:00:02.3]} 43. Kf2 {[%clk 0:00:27.6]} 43... b4 {[%clk 0:00:02.1]} 44. a4 {[%clk
0:00:27.3]} 44... c3 {[%clk 0:00:02]} 45. b3 {[%clk 0:00:27]} 45... Rbe7 {[%clk
0:00:01.9]} 46. Ke3 {[%clk 0:00:27]} 46... Nd7 {[%clk 0:00:02.1]} 47. Kd4 {[%clk
0:00:26.7]} 47... Ne5 {[%clk 0:00:02.4]} 48. Ke3 {[%clk 0:00:24.7]} 48... a5
{[%clk 0:00:03]} 49. Nd4 {[%clk 0:00:24.1]} 49... Rb7 {[%clk 0:00:03.1]} 50. Kf2
{[%clk 0:00:23.6]} 50... Rbe7 {[%clk 0:00:03.4]} 51. h5 {[%clk 0:00:23.1]} 51...
Kxh5 {[%clk 0:00:02.7]} 52. Nf5 {[%clk 0:00:19.8]} 52... gxf5 {[%clk 0:00:02.5]}
53. Rxf5+ {[%clk 0:00:19.9]} 53... Kh6 {[%clk 0:00:03]} 54. Rh3+ {[%clk
0:00:20]} 54... Kg7 {[%clk 0:00:03.4]} 55. Rfh5 {[%clk 0:00:20]} 55... Ng6
{[%clk 0:00:02.2]} 56. Rh6 {[%clk 0:00:17.7]} 56... Kg8 {[%clk 0:00:02.8]} 57.
Rxg6+ {[%clk 0:00:17.3]} 57... Rg7 {[%clk 0:00:02.4]} 58. Rgh6 {[%clk
0:00:17.2]} 58... Kf7 {[%clk 0:00:02.4]} 59. Kf3 {[%clk 0:00:16.9]} 59... Re5
{[%clk 0:00:02.7]} 60. Rh7 {[%clk 0:00:16.8]} 60... f5 {[%clk 0:00:02.8]} 61.
Rxg7+ {[%clk 0:00:15.4]} 61... Kxg7 {[%clk 0:00:03.7]} 62. exf5 {[%clk
0:00:14.9]} 62... Rxd5 {[%clk 0:00:04.3]} 63. Kf4 {[%clk 0:00:14.9]} 63... Rd2
{[%clk 0:00:05]} 64. Rd3 {[%clk 0:00:13.6]} 64... Rxd3 {[%clk 0:00:05]} 65. cxd3
{[%clk 0:00:13.6]} 65... c2 {[%clk 0:00:05.9]} 0-1

[Event "Early-Titled-Tuesday-Blitz-April-16-2024"]
[Site "Chess.com"]
[Date "2024.04.16"]
[Round "4"]
[White "Hercog"]
[Black "Road2GM3000"]
[Result "1-0"]
[WhiteElo "2119"]
[BlackElo "2441"]
[TimeControl "180+1"]
[EndTime "8:41:03 PDT"]
[Termination "Hercog won on time"]

1. d4 {[%clk 0:02:59.5]} 1... d5 {[%clk 0:02:58.1]} 2. c4 {[%clk 0:02:59.7]}
2... c6 {[%clk 0:02:58.7]} 3. Nc3 {[%clk 0:02:59.6]} 3... Nf6 {[%clk 0:02:59.3]}
4. e3 {[%clk 0:03:00]} 4... a6 {[%clk 0:03:00]} 5. Qc2 {[%clk 0:02:57.9]} 5...
g6 {[%clk 0:02:59.7]} 6. Bd3 {[%clk 0:02:57.7]} 6... Bg7 {[%clk 0:03:00.5]} 7.
Nf3 {[%clk 0:02:57.6]} 7... O-O {[%clk 0:03:01.3]} 8. O-O {[%clk 0:02:58]} 8...
Bg4 {[%clk 0:03:02.1]} 9. Ne5 {[%clk 0:02:57.9]} 9... Be6 {[%clk 0:03:02.6]} 10.
Bd2 {[%clk 0:02:56.9]} 10... Nbd7 {[%clk 0:03:02.6]} 11. f4 {[%clk 0:02:57.2]}
11... Nxe5 {[%clk 0:03:02.4]} 12. fxe5 {[%clk 0:02:57.2]} 12... Nd7 {[%clk
0:03:03]} 13. cxd5 {[%clk 0:02:48.6]} 13... cxd5 {[%clk 0:03:03.2]} 14. Qb3
{[%clk 0:02:47.9]} 14... b5 {[%clk 0:02:59.1]} 15. a4 {[%clk 0:02:41]} 15...
bxa4 {[%clk 0:02:50]} 16. Rxa4 {[%clk 0:02:40.8]} 16... Rb8 {[%clk 0:02:49.6]}
17. Qa2 {[%clk 0:02:31.2]} 17... Nb6 {[%clk 0:02:38.6]} 18. Rxa6 {[%clk
0:02:30.5]} 18... Nc4 {[%clk 0:02:39.2]} 19. Bc1 {[%clk 0:02:27.6]} 19... Bh6
{[%clk 0:02:32.2]} 20. Rf3 {[%clk 0:02:20.5]} 20... Ra8 {[%clk 0:02:26.1]} 21.
Rxa8 {[%clk 0:01:41.4]} 21... Qxa8 {[%clk 0:02:27]} 22. Qxa8 {[%clk 0:01:41.5]}
22... Rxa8 {[%clk 0:02:27.9]} 23. Bxc4 {[%clk 0:01:30.2]} 23... dxc4 {[%clk
0:02:23.4]} 24. d5 {[%clk 0:01:29.7]} 24... Bf5 {[%clk 0:02:14]} 25. Rf1 {[%clk
0:01:17.4]} 25... Bd3 {[%clk 0:02:07.1]} 26. Rd1 {[%clk 0:01:15.6]} 26... Ra1
{[%clk 0:02:05.8]} 27. Kf2 {[%clk 0:01:15.7]} 27... Bg7 {[%clk 0:01:50.7]} 28.
Bd2 {[%clk 0:00:59.7]} 28... Rxd1 {[%clk 0:01:47.3]} 29. Nxd1 {[%clk 0:00:59.8]}
29... Bxe5 {[%clk 0:01:48]} 30. h3 {[%clk 0:00:55.4]} 30... Be4 {[%clk
0:01:43.5]} 31. Nc3 {[%clk 0:00:55.6]} 31... Bd3 {[%clk 0:01:34.7]} 32. Kf3
{[%clk 0:00:54.4]} 32... Kf8 {[%clk 0:01:34.6]} 33. e4 {[%clk 0:00:54.3]} 33...
Ke8 {[%clk 0:01:34.3]} 34. Be3 {[%clk 0:00:53.2]} 34... Kd7 {[%clk 0:01:33.9]}
35. Bc5 {[%clk 0:00:51.3]} 35... h5 {[%clk 0:01:29.7]} 36. g4 {[%clk 0:00:51.2]}
36... h4 {[%clk 0:01:28.4]} 37. Kf2 {[%clk 0:00:50.6]} 37... g5 {[%clk
0:01:25.4]} 38. Be3 {[%clk 0:00:49.6]} 38... f6 {[%clk 0:01:25.6]} 39. Bc5
{[%clk 0:00:43.2]} 39... Bxc3 {[%clk 0:01:23.9]} 40. bxc3 {[%clk 0:00:43.2]}
40... Bxe4 {[%clk 0:01:24.5]} 41. d6 {[%clk 0:00:36.4]} 41... exd6 {[%clk
0:01:24.5]} 42. Bd4 {[%clk 0:00:36.7]} 42... Ke6 {[%clk 0:01:24.9]} 43. Be3
{[%clk 0:00:36.2]} 43... Bc6 {[%clk 0:01:08.8]} 44. Bd4 {[%clk 0:00:35.2]} 44...
Bd7 {[%clk 0:01:07]} 45. Be3 {[%clk 0:00:35.2]} 45... Kf7 {[%clk 0:01:00.3]} 46.
Bd2 {[%clk 0:00:33.9]} 46... Kg6 {[%clk 0:00:59.2]} 47. Be3 {[%clk 0:00:34.2]}
47... f5 {[%clk 0:00:59.5]} 48. gxf5+ {[%clk 0:00:34.3]} 48... Bxf5 {[%clk
0:01:00.4]} 49. Kg2 {[%clk 0:00:34.6]} 49... Be4+ {[%clk 0:01:00.9]} 50. Kh2
{[%clk 0:00:34.4]} 50... Kf5 {[%clk 0:01:01.4]} 51. Bd4 {[%clk 0:00:34.6]} 51...
Bc6 {[%clk 0:01:01.3]} 52. Bg7 {[%clk 0:00:34.5]} 52... Bd7 {[%clk 0:01:00.1]}
53. Bh8 {[%clk 0:00:34.7]} 53... Ke4 {[%clk 0:00:59.5]} 54. Bg7 {[%clk
0:00:35.2]} 54... Kd3 {[%clk 0:01:00.2]} 55. Bh8 {[%clk 0:00:35.5]} 55... d5
{[%clk 0:00:59.2]} 56. Bg7 {[%clk 0:00:36]} 56... Ke4 {[%clk 0:00:59.8]} 57. Bh8
{[%clk 0:00:35.5]} 57... Kf3 {[%clk 0:01:00.4]} 58. Bg7 {[%clk 0:00:35.6]} 58...
Ke4 {[%clk 0:00:22.2]} 59. Bh8 {[%clk 0:00:35.5]} 59... Kf5 {[%clk 0:00:22.8]}
60. Bg7 {[%clk 0:00:35.5]} 60... Kg6 {[%clk 0:00:23.5]} 61. Bh8 {[%clk
0:00:35.9]} 61... Kh5 {[%clk 0:00:24.2]} 62. Bg7 {[%clk 0:00:36.2]} 62... Be6
{[%clk 0:00:14.5]} 63. Bh8 {[%clk 0:00:35.9]} 63... Bxh3 {[%clk 0:00:08]} 64.
Kxh3 {[%clk 0:00:35.6]} 64... g4+ {[%clk 0:00:08.9]} 65. Kh2 {[%clk 0:00:35.7]}
65... Kg6 {[%clk 0:00:09.8]} 66. Bd4 {[%clk 0:00:34.2]} 66... Kf5 {[%clk
0:00:10.3]} 67. Bg7 {[%clk 0:00:34]} 67... Ke4 {[%clk 0:00:10.3]} 68. Bf6 {[%clk
0:00:34.2]} 68... Kd3 {[%clk 0:00:10.7]} 69. Kg2 {[%clk 0:00:33.1]} 69... Kd2
{[%clk 0:00:08.2]} 70. Kf2 {[%clk 0:00:32.4]} 70... Kd3 {[%clk 0:00:06.3]} 71.
Kg2 {[%clk 0:00:32.8]} 71... Kd2 {[%clk 0:00:03.1]} 72. Kf2 {[%clk 0:00:33.3]}
1-0